[Event "Titled Tuesday Blitz May 24 Early 2022"]
[White "Tymrakiewicz, Rafal"]
[Black "Samunenkov, Ihor"]
[WhiteFideId "1108832"]
[BlackFideId "14187086"]
[WhiteElo "2205"]
[BlackElo "2409"]
[Result "0-1"]
[Round "08"]
[TimeControl "180+1"]
[Date "2022.05.25"]
[WhiteClock "0:00:10"]
[BlackClock "0:00:09"]

1. e4 {[%clk 0:03:00]}  c5 {[%clk 0:02:59]} 2. c3 {[%clk 0:02:59]}  d5 {[%clk 0:02:57]} 3. exd5 {[%clk 0:02:59]}  Qxd5 {[%clk 0:02:58]} 4. d4 {[%clk 0:02:59]}  Nf6 {[%clk 0:02:59]} 5. Nf3 {[%clk 0:02:59]}  e6 {[%clk 0:02:59]} 6. Be3 {[%clk 0:02:55]}  cxd4 {[%clk 0:02:48]} 7. cxd4 {[%clk 0:02:49]}  Nc6 {[%clk 0:02:45]} 8. Nc3 {[%clk 0:02:49]}  Qd8 {[%clk 0:02:41]} 9. Bd3 {[%clk 0:02:49]}  Be7 {[%clk 0:02:41]} 10. O-O {[%clk 0:02:48]}  O-O {[%clk 0:02:42]} 11. Ne5 {[%clk 0:02:45]}  Bd7 {[%clk 0:02:29]} 12. Rc1 {[%clk 0:02:32]}  Rc8 {[%clk 0:02:27]} 13. Qf3 {[%clk 0:02:24]}  Nxe5 {[%clk 0:02:22]} 14. dxe5 {[%clk 0:02:25]}  Bc6 {[%clk 0:02:23]} 15. Qe2 {[%clk 0:02:24]}  Nd5 {[%clk 0:02:16]} 16. Nxd5 {[%clk 0:02:18]}  Qxd5 {[%clk 0:02:11]} 17. f4 {[%clk 0:02:16]}  Qxa2 {[%clk 0:01:36]} 18. Bc4 {[%clk 0:02:10]}  Qa5 {[%clk 0:01:30]} 19. Kh1 {[%clk 0:02:03]}  a6 {[%clk 0:01:12]} 20. Bd2 {[%clk 0:01:56]}  Bb4 {[%clk 0:01:00]} 21. Be3 {[%clk 0:01:35]}  Bd5 {[%clk 0:00:47]} 22. Bd3 {[%clk 0:01:31]}  Rxc1 {[%clk 0:00:46]} 23. Rxc1 {[%clk 0:01:27]}  Bc6 {[%clk 0:00:43]} 24. Bc4 {[%clk 0:01:08]}  Rd8 {[%clk 0:00:39]} 25. Rd1 {[%clk 0:00:53]}  Rxd1+ {[%clk 0:00:23]} 26. Qxd1 {[%clk 0:00:54]}  g6 {[%clk 0:00:21]} 27. h4 {[%clk 0:00:46]}  h5 {[%clk 0:00:21]} 28. Kh2 {[%clk 0:00:45]}  Bd5 {[%clk 0:00:18]} 29. Bd3 {[%clk 0:00:28]}  Bc5 {[%clk 0:00:17]} 30. Bd2 {[%clk 0:00:22]}  Qb6 {[%clk 0:00:15]} 31. Qc1 {[%clk 0:00:20]}  Bd4 {[%clk 0:00:11]} 32. Bc3 {[%clk 0:00:18]}  Bxc3 {[%clk 0:00:10]} 33. bxc3 {[%clk 0:00:19]}  Qf2 {[%clk 0:00:08]} 34. Qf1 {[%clk 0:00:11]}  Qxh4+ {[%clk 0:00:06]} 35. Kg1 {[%clk 0:00:12]}  Qg3 {[%clk 0:00:07]} 36. Be2 {[%clk 0:00:09]}  h4 {[%clk 0:00:06]} 37. Bf3 {[%clk 0:00:09]}  Bxf3 {[%clk 0:00:06]} 38. Qxf3 {[%clk 0:00:09]}  Qxf3 {[%clk 0:00:06]} 39. gxf3 {[%clk 0:00:09]}  a5 {[%clk 0:00:07]} 40. c4 {[%clk 0:00:09]}  a4 {[%clk 0:00:08]} 41. Kf2 {[%clk 0:00:10]}  a3 {[%clk 0:00:09]} 0-1


[Site "https://www.chess.com"]

[Event "Titled Tuesday Blitz May 24 Early 2022"]
[White "Urazayev, Arystanbek"]
[Black "Garv Gaur"]
[WhiteFideId "13709810"]
[BlackFideId "45030839"]
[WhiteElo "2422"]
[BlackElo "1950"]
[Result "0-1"]
[Round "08"]
[TimeControl "180+1"]
[Date "2022.05.25"]
[WhiteClock "0:01:38"]
[BlackClock "0:00:52"]

1. e4 {[%clk 0:03:00]}  c6 {[%clk 0:03:00]} 2. d4 {[%clk 0:02:58]}  d5 {[%clk 0:03:01]} 3. exd5 {[%clk 0:02:59]}  cxd5 {[%clk 0:03:01]} 4. Bd3 {[%clk 0:02:59]}  Nc6 {[%clk 0:03:01]} 5. c3 {[%clk 0:03:00]}  Qc7 {[%clk 0:03:01]} 6. Ne2 {[%clk 0:02:59]}  Bg4 {[%clk 0:03:01]} 7. f3 {[%clk 0:02:59]}  Bd7 {[%clk 0:03:00]} 8. Bf4 {[%clk 0:02:58]}  e5 {[%clk 0:03:00]} 9. dxe5 {[%clk 0:02:57]}  Nxe5 {[%clk 0:03:01]} 10. O-O {[%clk 0:02:57]}  Nf6 {[%clk 0:03:01]} 11. Nd4 {[%clk 0:02:53]}  Bd6 {[%clk 0:02:57]} 12. Nb5 {[%clk 0:02:53]}  Qb6+ {[%clk 0:02:52]} 13. Nd4 {[%clk 0:02:48]}  O-O {[%clk 0:02:04]} 14. Rf2 {[%clk 0:02:30]}  Nxd3 {[%clk 0:02:02]} 15. Qxd3 {[%clk 0:02:26]}  Bxf4 {[%clk 0:02:01]} 16. Na3 {[%clk 0:02:27]}  Rfe8 {[%clk 0:02:00]} 17. Kh1 {[%clk 0:02:25]}  Be3 {[%clk 0:01:59]} 18. Rff1 {[%clk 0:02:22]}  Bxd4 {[%clk 0:01:59]} 19. cxd4 {[%clk 0:02:23]}  Qxb2 {[%clk 0:01:57]} 20. Rab1 {[%clk 0:02:21]}  Qe2 {[%clk 0:01:57]} 21. Qc3 {[%clk 0:02:22]}  Rac8 {[%clk 0:01:54]} 22. Qa5 {[%clk 0:02:22]}  Bf5 {[%clk 0:01:50]} 23. Rbe1 {[%clk 0:02:22]}  Qa6 {[%clk 0:01:47]} 24. Qb4 {[%clk 0:02:21]}  Qb6 {[%clk 0:01:42]} 25. Qa4 {[%clk 0:02:15]}  Bd7 {[%clk 0:01:38]} 26. Qd1 {[%clk 0:02:15]}  Qa5 {[%clk 0:01:32]} 27. Nc2 {[%clk 0:02:13]}  Qxa2 {[%clk 0:01:31]} 28. Nb4 {[%clk 0:02:13]}  Qc4 {[%clk 0:01:31]} 29. Nd3 {[%clk 0:02:08]}  Ba4 {[%clk 0:01:27]} 30. Qd2 {[%clk 0:02:02]}  Qxd4 {[%clk 0:01:24]} 31. Qa5 {[%clk 0:01:56]}  Qxd3 {[%clk 0:01:21]} 32. Qxa4 {[%clk 0:01:56]}  b5 {[%clk 0:01:17]} 33. Qxa7 {[%clk 0:01:55]}  h6 {[%clk 0:01:14]} 34. h3 {[%clk 0:01:55]}  Rxe1 {[%clk 0:01:12]} 35. Rxe1 {[%clk 0:01:56]}  Qd2 {[%clk 0:01:12]} 36. Qg1 {[%clk 0:01:51]}  b4 {[%clk 0:01:11]} 37. Rd1 {[%clk 0:01:51]}  Qa2 {[%clk 0:01:10]} 38. Qd4 {[%clk 0:01:49]}  b3 {[%clk 0:01:06]} 39. Rd2 {[%clk 0:01:49]}  Qb1+ {[%clk 0:01:02]} 40. Kh2 {[%clk 0:01:48]}  Qc1 {[%clk 0:01:00]} 41. Re2 {[%clk 0:01:43]}  Qc7+ {[%clk 0:00:59]} 42. f4 {[%clk 0:01:42]}  Qc4 {[%clk 0:00:56]} 43. Qf2 {[%clk 0:01:39]}  Ne4 {[%clk 0:00:53]} 44. Qh4 {[%clk 0:01:38]}  Qxe2 {[%clk 0:00:52]} 0-1


[Site "https://www.chess.com"]

[Event "Titled Tuesday Blitz May 24 Early 2022"]
[White "Vainio, Ville"]
[Black "Avazkhonov, Alikhon"]
[WhiteFideId "507270"]
[BlackFideId "14208504"]
[WhiteElo "2224"]
[BlackElo "1739"]
[Result "0-1"]
[Round "08"]
[TimeControl "180+1"]
[Date "2022.05.25"]
[WhiteClock "0:00:02"]
[BlackClock "0:00:01"]

1. e4 {[%clk 0:03:00]}  c5 {[%clk 0:02:58]} 2. Nf3 {[%clk 0:03:00]}  d6 {[%clk 0:02:58]} 3. d4 {[%clk 0:03:01]}  cxd4 {[%clk 0:02:59]} 4. Nxd4 {[%clk 0:03:01]}  Nf6 {[%clk 0:02:59]} 5. Nc3 {[%clk 0:03:02]}  a6 {[%clk 0:03:00]} 6. Be2 {[%clk 0:03:03]}  e5 {[%clk 0:03:00]} 7. Nb3 {[%clk 0:03:03]}  Be7 {[%clk 0:03:01]} 8. Bg5 {[%clk 0:03:03]}  O-O {[%clk 0:02:58]} 9. Bxf6 {[%clk 0:03:03]}  Bxf6 {[%clk 0:02:59]} 10. Nd5 {[%clk 0:03:03]}  Nd7 {[%clk 0:02:52]} 11. Qd3 {[%clk 0:02:58]}  Nc5 {[%clk 0:02:46]} 12. Nxc5 {[%clk 0:02:51]}  dxc5 {[%clk 0:02:47]} 13. O-O-O {[%clk 0:02:47]}  Be6 {[%clk 0:02:43]} 14. Kb1 {[%clk 0:02:45]}  b5 {[%clk 0:02:43]} 15. Qc3 {[%clk 0:02:35]}  c4 {[%clk 0:02:32]} 16. h4 {[%clk 0:02:03]}  Bxd5 {[%clk 0:01:09]} 17. Rxd5 {[%clk 0:01:35]}  Qc7 {[%clk 0:01:09]} 18. g4 {[%clk 0:01:29]}  g6 {[%clk 0:01:09]} 19. g5 {[%clk 0:01:22]}  Bg7 {[%clk 0:01:09]} 20. h5 {[%clk 0:01:22]}  Rfd8 {[%clk 0:00:43]} 21. Rhd1 {[%clk 0:01:03]}  Qe7 {[%clk 0:00:27]} 22. Qg3 {[%clk 0:00:49]}  Rxd5 {[%clk 0:00:24]} 23. exd5 {[%clk 0:00:43]}  Rd8 {[%clk 0:00:23]} 24. c3 {[%clk 0:00:36]}  e4 {[%clk 0:00:19]} 25. Qe3 {[%clk 0:00:30]}  Qe5 {[%clk 0:00:12]} 26. Qc5 {[%clk 0:00:20]}  Bf8 {[%clk 0:00:12]} 27. Qc6 {[%clk 0:00:18]}  Rd6 {[%clk 0:00:10]} 28. Qa8 {[%clk 0:00:15]}  Qxg5 {[%clk 0:00:08]} 29. hxg6 {[%clk 0:00:15]}  hxg6 {[%clk 0:00:08]} 30. a3 {[%clk 0:00:11]}  Rd8 {[%clk 0:00:07]} 31. Qxa6 {[%clk 0:00:10]}  Rxd5 {[%clk 0:00:07]} 32. Rxd5 {[%clk 0:00:08]}  Qxd5 {[%clk 0:00:08]} 33. a4 {[%clk 0:00:07]}  Qd2 {[%clk 0:00:06]} 34. Bg4 {[%clk 0:00:07]}  bxa4 {[%clk 0:00:04]} 35. Qxc4 {[%clk 0:00:05]}  Qxf2 {[%clk 0:00:02]} 36. Qxe4 {[%clk 0:00:05]}  f5 {[%clk 0:00:03]} 37. Qe6+ {[%clk 0:00:03]}  Kh7 {[%clk 0:00:03]} 38. Be2 {[%clk 0:00:04]}  Bg7 {[%clk 0:00:03]} 39. Bc4 {[%clk 0:00:02]}  a3 {[%clk 0:00:01]} 0-1


[Site "https://www.chess.com"]

[Event "Titled Tuesday Blitz May 24 Early 2022"]
[White "Vignesh, N R"]
[Black "Sargsyan, Anna M."]
[WhiteFideId "25012215"]
[BlackFideId "13308130"]
[WhiteElo "2363"]
[BlackElo "2271"]
[Result "1/2-1/2"]
[Round "08"]
[TimeControl "180+1"]
[Date "2022.05.25"]
[WhiteClock "0:00:59"]
[BlackClock "0:00:10"]

1. d4 {[%clk 0:03:00]}  d5 {[%clk 0:02:58]} 2. c4 {[%clk 0:03:01]}  c6 {[%clk 0:02:58]} 3. Nf3 {[%clk 0:03:01]}  Nf6 {[%clk 0:02:58]} 4. e3 {[%clk 0:03:01]}  Bg4 {[%clk 0:02:56]} 5. cxd5 {[%clk 0:02:59]}  cxd5 {[%clk 0:02:52]} 6. Qb3 {[%clk 0:02:58]}  Qb6 {[%clk 0:02:51]} 7. Qxb6 {[%clk 0:02:58]}  axb6 {[%clk 0:02:52]} 8. Ne5 {[%clk 0:02:58]}  Bd7 {[%clk 0:02:41]} 9. Nc3 {[%clk 0:02:56]}  e6 {[%clk 0:02:41]} 10. Nxd7 {[%clk 0:02:54]}  Nbxd7 {[%clk 0:02:40]} 11. Bb5 {[%clk 0:02:49]}  Bb4 {[%clk 0:02:40]} 12. Bd2 {[%clk 0:02:49]}  O-O {[%clk 0:02:39]} 13. Ke2 {[%clk 0:02:49]}  Bd6 {[%clk 0:02:29]} 14. g4 {[%clk 0:02:42]}  Rfd8 {[%clk 0:02:23]} 15. g5 {[%clk 0:02:40]}  Ne8 {[%clk 0:02:24]} 16. f4 {[%clk 0:02:38]}  Nc7 {[%clk 0:02:24]} 17. Bd3 {[%clk 0:02:37]}  Nb8 {[%clk 0:02:20]} 18. h4 {[%clk 0:02:36]}  Nc6 {[%clk 0:02:20]} 19. a3 {[%clk 0:02:36]}  Na5 {[%clk 0:02:19]} 20. Rag1 {[%clk 0:02:28]}  Nb3 {[%clk 0:02:08]} 21. h5 {[%clk 0:02:29]}  Nxd2 {[%clk 0:02:01]} 22. Kxd2 {[%clk 0:02:30]}  Ra5 {[%clk 0:02:00]} 23. g6 {[%clk 0:02:28]}  fxg6 {[%clk 0:02:01]} 24. hxg6 {[%clk 0:02:28]}  h6 {[%clk 0:02:01]} 25. Rc1 {[%clk 0:02:25]}  b5 {[%clk 0:01:46]} 26. Na2 {[%clk 0:02:15]}  Ne8 {[%clk 0:01:36]} 27. Rc2 {[%clk 0:02:12]}  Kf8 {[%clk 0:01:30]} 28. Rhc1 {[%clk 0:02:10]}  Ke7 {[%clk 0:01:29]} 29. Rc8 {[%clk 0:02:09]}  Kd7 {[%clk 0:01:24]} 30. Rxd8+ {[%clk 0:02:07]}  Kxd8 {[%clk 0:00:56]} 31. Rc3 {[%clk 0:02:08]}  h5 {[%clk 0:00:43]} 32. b4 {[%clk 0:01:56]}  Ra8 {[%clk 0:00:29]} 33. Bxb5 {[%clk 0:01:56]}  Nf6 {[%clk 0:00:28]} 34. Bd3 {[%clk 0:01:56]}  h4 {[%clk 0:00:29]} 35. Ke2 {[%clk 0:01:56]}  Ke7 {[%clk 0:00:22]} 36. Kf2 {[%clk 0:01:51]}  h3 {[%clk 0:00:16]} 37. Kg1 {[%clk 0:01:48]}  Ng4 {[%clk 0:00:15]} 38. Be2 {[%clk 0:01:43]}  h2+ {[%clk 0:00:16]} 39. Kh1 {[%clk 0:01:43]}  Nf2+ {[%clk 0:00:15]} 40. Kxh2 {[%clk 0:01:43]}  Ne4 {[%clk 0:00:15]} 41. Rb3 {[%clk 0:01:40]}  Nd2 {[%clk 0:00:15]} 42. Rb2 {[%clk 0:01:35]}  Ne4 {[%clk 0:00:14]} 43. Rb3 {[%clk 0:01:19]}  Rh8+ {[%clk 0:00:14]} 44. Kg2 {[%clk 0:01:18]}  Rh6 {[%clk 0:00:15]} 45. Nc3 {[%clk 0:01:07]}  Rxg6+ {[%clk 0:00:15]} 46. Kh2 {[%clk 0:01:07]}  Rh6+ {[%clk 0:00:15]} 47. Kg1 {[%clk 0:01:08]}  Rg6+ {[%clk 0:00:15]} 48. Kh2 {[%clk 0:01:07]}  Rh6+ {[%clk 0:00:10]} 49. Kg2 {[%clk 0:01:06]}  Rg6+ {[%clk 0:00:10]} 50. Kh2 {[%clk 0:00:59]} 1/2-1/2


[Site "https://www.chess.com"]

[Event "Titled Tuesday Blitz May 24 Early 2022"]
[White "Yeletsky, Ivan"]
[Black "Swiercz, Dariusz"]
[WhiteFideId "24180327"]
[BlackFideId "1126881"]
[WhiteElo "2319"]
[BlackElo "2627"]
[Result "0-1"]
[Round "08"]
[TimeControl "180+1"]
[Date "2022.05.24"]
[WhiteClock "0:00:02"]
[BlackClock "0:00:08"]

1. e4 {[%clk 0:02:57]}  c5 {[%clk 0:02:59]} 2. Nf3 {[%clk 0:02:57]}  Nc6 {[%clk 0:03:00]} 3. Bb5 {[%clk 0:02:56]}  g6 {[%clk 0:03:00]} 4. c3 {[%clk 0:02:55]}  Nf6 {[%clk 0:02:52]} 5. d3 {[%clk 0:02:54]}  Bg7 {[%clk 0:02:52]} 6. O-O {[%clk 0:02:54]}  O-O {[%clk 0:02:53]} 7. Re1 {[%clk 0:02:55]}  d6 {[%clk 0:02:51]} 8. h3 {[%clk 0:02:55]}  Bd7 {[%clk 0:02:43]} 9. Nbd2 {[%clk 0:02:47]}  Ne5 {[%clk 0:02:42]} 10. Bxd7 {[%clk 0:02:39]}  Nfxd7 {[%clk 0:02:40]} 11. d4 {[%clk 0:02:35]}  Nd3 {[%clk 0:02:36]} 12. Re2 {[%clk 0:02:34]}  cxd4 {[%clk 0:02:31]} 13. cxd4 {[%clk 0:02:34]}  Rc8 {[%clk 0:02:31]} 14. Nf1 {[%clk 0:02:28]}  Nxc1 {[%clk 0:02:28]} 15. Rxc1 {[%clk 0:02:29]}  Qa5 {[%clk 0:02:23]} 16. a3 {[%clk 0:02:27]}  Qb6 {[%clk 0:01:58]} 17. Ne3 {[%clk 0:02:23]}  e6 {[%clk 0:01:38]} 18. Rec2 {[%clk 0:02:21]}  Rxc2 {[%clk 0:01:35]} 19. Qxc2 {[%clk 0:02:21]}  Nf6 {[%clk 0:01:26]} 20. g3 {[%clk 0:02:13]}  Bh6 {[%clk 0:01:22]} 21. Nc4 {[%clk 0:02:00]}  Qc6 {[%clk 0:01:14]} 22. Ncd2 {[%clk 0:02:00]}  Nxe4 {[%clk 0:01:01]} 23. Qb1 {[%clk 0:01:51]}  Nxd2 {[%clk 0:00:36]} 24. Nxd2 {[%clk 0:01:51]}  Qd5 {[%clk 0:00:32]} 25. Ne4 {[%clk 0:01:52]}  Bg7 {[%clk 0:00:32]} 26. Rd1 {[%clk 0:01:43]}  Rc8 {[%clk 0:00:29]} 27. Qd3 {[%clk 0:01:37]}  a6 {[%clk 0:00:22]} 28. h4 {[%clk 0:01:14]}  h5 {[%clk 0:00:20]} 29. Ng5 {[%clk 0:01:08]}  Rc4 {[%clk 0:00:19]} 30. Nf3 {[%clk 0:01:08]}  Bf6 {[%clk 0:00:18]} 31. Qe3 {[%clk 0:00:52]}  Kg7 {[%clk 0:00:18]} 32. Qd3 {[%clk 0:00:53]}  b5 {[%clk 0:00:17]} 33. Kg2 {[%clk 0:00:47]}  Rxd4 {[%clk 0:00:13]} 34. Qxd4 {[%clk 0:00:46]}  Bxd4 {[%clk 0:00:13]} 35. Rxd4 {[%clk 0:00:47]}  Qc6 {[%clk 0:00:13]} 36. Rd3 {[%clk 0:00:45]}  e5 {[%clk 0:00:14]} 37. Rc3 {[%clk 0:00:42]}  Qe4 {[%clk 0:00:14]} 38. Kg1 {[%clk 0:00:37]}  Qb1+ {[%clk 0:00:13]} 39. Kg2 {[%clk 0:00:37]}  Qxb2 {[%clk 0:00:14]} 40. Rc7 {[%clk 0:00:37]}  Qxa3 {[%clk 0:00:11]} 41. Ng5 {[%clk 0:00:34]}  Qb3 {[%clk 0:00:12]} 42. Ra7 {[%clk 0:00:28]}  Qd5+ {[%clk 0:00:09]} 43. Kh2 {[%clk 0:00:23]}  b4 {[%clk 0:00:09]} 44. Rxa6 {[%clk 0:00:21]}  b3 {[%clk 0:00:09]} 45. Rb6 {[%clk 0:00:21]}  Qc5 {[%clk 0:00:08]} 46. Rxb3 {[%clk 0:00:19]}  Qxf2+ {[%clk 0:00:09]} 47. Kh1 {[%clk 0:00:18]}  Qe1+ {[%clk 0:00:07]} 48. Kh2 {[%clk 0:00:18]}  Qe2+ {[%clk 0:00:08]} 49. Kh3 {[%clk 0:00:17]}  Qd1 {[%clk 0:00:08]} 50. Rb2 {[%clk 0:00:15]}  Qh1+ {[%clk 0:00:09]} 51. Rh2 {[%clk 0:00:16]}  Qf1+ {[%clk 0:00:09]} 52. Rg2 {[%clk 0:00:16]}  Qf5+ {[%clk 0:00:09]} 53. Kh2 {[%clk 0:00:17]}  d5 {[%clk 0:00:10]} 54. Kg1 {[%clk 0:00:14]}  Qb1+ {[%clk 0:00:09]} 55. Kh2 {[%clk 0:00:13]}  e4 {[%clk 0:00:08]} 56. Rf2 {[%clk 0:00:13]}  Qb7 {[%clk 0:00:08]} 57. Rf4 {[%clk 0:00:09]}  Qe7 {[%clk 0:00:08]} 58. Kg2 {[%clk 0:00:08]}  f6 {[%clk 0:00:09]} 59. Nh3 {[%clk 0:00:06]}  d4 {[%clk 0:00:09]} 60. Kf1 {[%clk 0:00:01]}  f5 {[%clk 0:00:10]} 61. Nf2 {[%clk 0:00:02]}  d3 {[%clk 0:00:09]} 62. Nd1 {[%clk 0:00:01]}  Qc5 {[%clk 0:00:09]} 63. Rf2 {[%clk 0:00:01]}  Qc1 {[%clk 0:00:10]} 64. Ke1 {[%clk 0:00:02]}  e3 {[%clk 0:00:09]} 65. Rg2 {[%clk 0:00:02]}  e2 {[%clk 0:00:08]} 0-1


[Site "https://www.chess.com"]

[Event "Titled Tuesday Blitz May 24 Early 2022"]
[White "Zhigalko, Sergei"]
[Black "Gabrielian, Artur"]
[WhiteFideId "13502956"]
[BlackFideId "4131002"]
[WhiteElo "2662"]
[BlackElo "2440"]
[Result "1-0"]
[Round "08"]
[TimeControl "180+1"]
[Date "2022.05.24"]
[WhiteClock "0:00:05"]
[BlackClock "0:00:04"]

1. e4 {[%clk 0:03:00]}  c5 {[%clk 0:02:58]} 2. Nf3 {[%clk 0:02:58]}  d6 {[%clk 0:02:57]} 3. d4 {[%clk 0:02:58]}  cxd4 {[%clk 0:02:56]} 4. Qxd4 {[%clk 0:02:59]}  Nc6 {[%clk 0:02:56]} 5. Bb5 {[%clk 0:02:59]}  Bd7 {[%clk 0:02:56]} 6. Bxc6 {[%clk 0:02:59]}  Bxc6 {[%clk 0:02:55]} 7. Nc3 {[%clk 0:03:00]}  Nf6 {[%clk 0:02:54]} 8. Bg5 {[%clk 0:03:00]}  e6 {[%clk 0:02:53]} 9. O-O-O {[%clk 0:02:59]}  Be7 {[%clk 0:02:53]} 10. Rhe1 {[%clk 0:03:00]}  O-O {[%clk 0:02:47]} 11. Kb1 {[%clk 0:02:59]}  h6 {[%clk 0:02:42]} 12. Bh4 {[%clk 0:03:00]}  Re8 {[%clk 0:02:41]} 13. Qd3 {[%clk 0:03:00]}  Rc8 {[%clk 0:02:39]} 14. Bg3 {[%clk 0:02:58]}  d5 {[%clk 0:02:35]} 15. e5 {[%clk 0:02:50]}  Ne4 {[%clk 0:02:33]} 16. Nxe4 {[%clk 0:02:33]}  dxe4 {[%clk 0:02:33]} 17. Qxd8 {[%clk 0:02:30]}  Rexd8 {[%clk 0:02:31]} 18. Nd4 {[%clk 0:02:31]}  Be8 {[%clk 0:02:08]} 19. Rxe4 {[%clk 0:02:03]}  Bc5 {[%clk 0:02:07]} 20. Rd3 {[%clk 0:01:20]}  Rd5 {[%clk 0:01:46]} 21. f3 {[%clk 0:01:08]}  Rcd8 {[%clk 0:01:41]} 22. c3 {[%clk 0:00:53]}  b5 {[%clk 0:01:21]} 23. Kc2 {[%clk 0:00:38]}  b4 {[%clk 0:01:19]} 24. Bh4 {[%clk 0:00:26]}  g5 {[%clk 0:01:14]} 25. Bf2 {[%clk 0:00:24]}  bxc3 {[%clk 0:01:09]} 26. bxc3 {[%clk 0:00:23]}  Ba4+ {[%clk 0:01:00]} 27. Kc1 {[%clk 0:00:13]}  Rb8 {[%clk 0:00:38]} 28. h4 {[%clk 0:00:07]}  Ba3+ {[%clk 0:00:36]} 29. Kd2 {[%clk 0:00:07]}  Rb2+ {[%clk 0:00:24]} 30. Ke1 {[%clk 0:00:08]}  Rxa2 {[%clk 0:00:17]} 31. hxg5 {[%clk 0:00:07]}  hxg5 {[%clk 0:00:17]} 32. Rd2 {[%clk 0:00:04]}  Ra1+ {[%clk 0:00:15]} 33. Ke2 {[%clk 0:00:05]}  Bb5+ {[%clk 0:00:13]} 34. Nxb5 {[%clk 0:00:04]}  Rxb5 {[%clk 0:00:14]} 35. Ra4 {[%clk 0:00:04]}  Rbb1 {[%clk 0:00:11]} 36. Rxa7 {[%clk 0:00:03]}  Bf8 {[%clk 0:00:11]} 37. Rxa1 {[%clk 0:00:04]}  Rxa1 {[%clk 0:00:11]} 38. Bd4 {[%clk 0:00:04]}  Kg7 {[%clk 0:00:11]} 39. g4 {[%clk 0:00:05]}  Kg6 {[%clk 0:00:11]} 40. Kd3 {[%clk 0:00:05]}  Rf1 {[%clk 0:00:10]} 41. Ke2 {[%clk 0:00:05]}  Rc1 {[%clk 0:00:09]} 42. Rb2 {[%clk 0:00:05]}  Be7 {[%clk 0:00:08]} 43. Rb7 {[%clk 0:00:04]}  Ba3 {[%clk 0:00:08]} 44. Ra7 {[%clk 0:00:04]}  Bf8 {[%clk 0:00:08]} 45. Ra8 {[%clk 0:00:04]}  Be7 {[%clk 0:00:07]} 46. Rg8+ {[%clk 0:00:05]}  Kh7 {[%clk 0:00:07]} 47. Re8 {[%clk 0:00:05]}  Ba3 {[%clk 0:00:07]} 48. Ra8 {[%clk 0:00:05]}  Ra1 {[%clk 0:00:05]} 49. c4 {[%clk 0:00:05]}  Ra2+ {[%clk 0:00:04]} 50. Kd3 {[%clk 0:00:05]} 1-0


[Site "https://www.chess.com"]

[Event "Titled Tuesday Blitz May 24 Early 2022"]
[White "Zorbos"]
[Black "Itkis, Boris"]
[BlackFideId "1209167"]
[WhiteElo "2483"]
[BlackElo "2207"]
[Result "0-1"]
[Round "08"]
[TimeControl "180+1"]
[Date "2022.05.25"]
[WhiteClock "0:00:32"]
[BlackClock "0:00:11"]

1. c4 {[%clk 0:03:00]}  e5 {[%clk 0:02:59]} 2. g3 {[%clk 0:03:01]}  Nf6 {[%clk 0:02:58]} 3. Bg2 {[%clk 0:03:01]}  d5 {[%clk 0:02:59]} 4. cxd5 {[%clk 0:03:02]}  Nxd5 {[%clk 0:03:00]} 5. Nc3 {[%clk 0:03:02]}  Nb6 {[%clk 0:03:00]} 6. Nf3 {[%clk 0:03:03]}  Nc6 {[%clk 0:03:00]} 7. O-O {[%clk 0:03:03]}  Be6 {[%clk 0:03:01]} 8. d3 {[%clk 0:03:04]}  Be7 {[%clk 0:03:01]} 9. a3 {[%clk 0:03:05]}  O-O {[%clk 0:02:59]} 10. b4 {[%clk 0:03:05]}  f6 {[%clk 0:02:58]} 11. Bb2 {[%clk 0:03:05]}  a6 {[%clk 0:02:55]} 12. Rc1 {[%clk 0:03:06]}  Qd7 {[%clk 0:02:53]} 13. Ne4 {[%clk 0:03:06]}  Rad8 {[%clk 0:02:46]} 14. Nc5 {[%clk 0:03:07]}  Bxc5 {[%clk 0:02:47]} 15. Rxc5 {[%clk 0:03:07]}  Ne7 {[%clk 0:02:26]} 16. Qc2 {[%clk 0:02:59]}  c6 {[%clk 0:02:11]} 17. Nd2 {[%clk 0:02:48]}  Nf5 {[%clk 0:02:08]} 18. Qd1 {[%clk 0:02:42]}  Nd4 {[%clk 0:02:06]} 19. Rc1 {[%clk 0:02:40]}  Bh3 {[%clk 0:01:55]} 20. Bxd4 {[%clk 0:02:34]}  exd4 {[%clk 0:01:46]} 21. Qb3+ {[%clk 0:02:34]}  Nd5 {[%clk 0:01:45]} 22. Ne4 {[%clk 0:02:20]}  Bxg2 {[%clk 0:01:39]} 23. Kxg2 {[%clk 0:02:21]}  Kh8 {[%clk 0:01:39]} 24. a4 {[%clk 0:02:19]}  Qe7 {[%clk 0:01:27]} 25. Rfe1 {[%clk 0:02:09]}  Qxb4 {[%clk 0:01:14]} 26. Qxb4 {[%clk 0:02:02]}  Nxb4 {[%clk 0:01:15]} 27. a5 {[%clk 0:02:03]}  Nd5 {[%clk 0:01:03]} 28. Nc5 {[%clk 0:02:00]}  Rf7 {[%clk 0:01:01]} 29. Rb1 {[%clk 0:02:01]}  Nc3 {[%clk 0:00:54]} 30. Rxb7 {[%clk 0:01:54]}  Rxb7 {[%clk 0:00:54]} 31. Nxb7 {[%clk 0:01:55]}  Rb8 {[%clk 0:00:54]} 32. Nc5 {[%clk 0:01:54]}  Rb5 {[%clk 0:00:54]} 33. Nxa6 {[%clk 0:01:53]}  Rxa5 {[%clk 0:00:54]} 34. Nc7 {[%clk 0:01:49]}  Re5 {[%clk 0:00:49]} 35. e4 {[%clk 0:01:45]}  dxe3 {[%clk 0:00:47]} 36. fxe3 {[%clk 0:01:46]}  Kg8 {[%clk 0:00:41]} 37. Kf3 {[%clk 0:01:40]}  Re7 {[%clk 0:00:35]} 38. Rc1 {[%clk 0:01:31]}  Nd5 {[%clk 0:00:25]} 39. Nxd5 {[%clk 0:01:29]}  cxd5 {[%clk 0:00:26]} 40. Rc5 {[%clk 0:01:27]}  Rd7 {[%clk 0:00:25]} 41. Ke2 {[%clk 0:01:25]}  Kf7 {[%clk 0:00:25]} 42. Kd2 {[%clk 0:01:25]}  d4 {[%clk 0:00:20]} 43. e4 {[%clk 0:01:20]}  Ra7 {[%clk 0:00:20]} 44. Rc4 {[%clk 0:01:18]}  Ra2+ {[%clk 0:00:19]} 45. Ke1 {[%clk 0:01:14]}  Rxh2 {[%clk 0:00:18]} 46. Rxd4 {[%clk 0:01:14]}  Ke6 {[%clk 0:00:18]} 47. Kf1 {[%clk 0:01:11]}  h5 {[%clk 0:00:16]} 48. Rd8 {[%clk 0:01:10]}  h4 {[%clk 0:00:16]} 49. gxh4 {[%clk 0:01:10]}  Rxh4 {[%clk 0:00:16]} 50. Kf2 {[%clk 0:01:11]}  Rh1 {[%clk 0:00:15]} 51. Ke3 {[%clk 0:01:11]}  Re1+ {[%clk 0:00:15]} 52. Kd4 {[%clk 0:01:10]}  f5 {[%clk 0:00:14]} 53. e5 {[%clk 0:01:07]}  f4 {[%clk 0:00:12]} 54. Rf8 {[%clk 0:01:07]}  g5 {[%clk 0:00:12]} 55. Rf6+ {[%clk 0:01:08]}  Ke7 {[%clk 0:00:12]} 56. Rf5 {[%clk 0:01:04]}  Rg1 {[%clk 0:00:12]} 57. Kd5 {[%clk 0:01:01]}  Rg3 {[%clk 0:00:13]} 58. d4 {[%clk 0:01:01]}  f3 {[%clk 0:00:13]} 59. Ke4 {[%clk 0:00:55]}  g4 {[%clk 0:00:13]} 60. d5 {[%clk 0:00:56]}  Rg1 {[%clk 0:00:12]} 61. d6+ {[%clk 0:00:56]}  Ke6 {[%clk 0:00:12]} 62. Rf6+ {[%clk 0:00:56]}  Kd7 {[%clk 0:00:12]} 63. Kf5 {[%clk 0:00:56]}  f2 {[%clk 0:00:12]} 64. Rf7+ {[%clk 0:00:56]}  Kc6 {[%clk 0:00:12]} 65. Ke6 {[%clk 0:00:38]}  f1=Q {[%clk 0:00:11]} 66. Rc7+ {[%clk 0:00:32]}  Kb6 {[%clk 0:00:11]} 0-1


[Site "https://www.chess.com"]